fUSD/lending_fUSD_20240812
["ID","MTS","AMOUNT","RATE_DAILY","PERIOD"]
[334681769,1723468259891,-151.0,0.00011105,2]
[334681770,1723468259901,-151.0,0.00011105,2]
[334681771,1723468259923,-151.0,0.00011105,2]
[334681772,1723468259933,-151.0,0.00011105,2]
[334681773,1723468259943,-151.0,0.00011105,2]
[334681774,1723468259963,-151.0,0.00011105,2]
[334681775,1723468259984,-151.0,0.00011105,2]
[334681776,1723468260005,-173.632308,0.00011105,2]
[334681777,1723468260028,-173.632308,0.00011105,2]
[334681778,1723468260051,-173.632308,0.00011105,2]
[334681779,1723468260077,-173.632298,0.00011105,2]
[334681780,1723468260100,-454.831213,0.00011105,2]
[334681781,1723468260124,-454.831213,0.00011105,2]
[334681782,1723468260147,-454.831213,0.00011105,2]
[334681783,1723468260179,-454.831222,0.00011105,2]
[334681784,1723468260200,-227.227554,0.00011105,2]
[334681785,1723468260209,-151.0,0.00011105,2]
[334681786,1723468260219,-151.0,0.00011105,2]
[334681787,1723468260229,-227.227554,0.00011105,2]
[334681788,1723468260239,-803.388965,0.00011105,2]
[334681789,1723468260248,-392.846601,0.00011105,2]
[334681790,1723468260257,-392.846601,0.00011105,2]
[334681791,1723468260267,-235.892359,0.00011105,2]
[334681792,1723468260276,-235.892359,0.00011105,2]
[334681793,1723468260286,-257.113054,0.00011105,2]
[334681794,1723468260295,-257.113054,0.00011105,2]
[334681795,1723468260305,-1244.122948,0.00011105,2]
[334681796,1723468260315,-1244.122948,0.00011105,2]
[334681797,1723468260324,-185.118147,0.00011105,2]
[334681798,1723468260333,-185.118147,0.00011105,2]
[334681799,1723468260343,-151.0,0.00011105,2]
[334681800,1723468260351,-1023.183856,0.00011105,2]
[334681801,1723468260360,-1023.183856,0.00011105,2]
[334681802,1723468260370,-263.749337,0.00011105,2]
[334681803,1723468260380,-263.749337,0.00011105,2]
[334681804,1723468260390,-321.919532,0.00011105,2]
[334681805,1723468260400,-321.919532,0.00011105,2]
[334681806,1723468260416,-209.116136,0.00011105,2]
[334681807,1723468260426,-209.116136,0.00011105,2]
[334681808,1723468260438,-151.0,0.00011105,2]
[334681809,1723468260450,-151.0,0.00011105,2]
[334681810,1723468260461,-751.248501,0.00011105,2]
[334681811,1723468260471,-152.595704,0.00011105,2]
[334681812,1723468260482,-751.248501,0.00011105,2]
[334681813,1723468260492,-152.595704,0.00011105,2]
[334681814,1723468260502,-1765.15615,0.00011105,2]
[334681815,1723468260512,-155.07689284,0.00011105,2]
[334681816,1723468260524,-1765.15615,0.00011105,2]
[334681817,1723468260534,-151.0,0.00011105,2]
[334681818,1723468260543,-684.571937,0.00011105,2]
[334681819,1723468260553,-684.571937,0.00011105,2]
[334681820,1723468260562,-405.5944,0.00011105,2]
[334681821,1723468260571,-405.5944,0.00011105,2]
[334681822,1723468260581,-773.28605,0.00011105,2]
[334681823,1723468260591,-773.28605,0.00011105,2]
[334681824,1723468260601,-303.95736794,0.00011105,2]
[334681825,1723468260610,-459.864876,0.00011105,2]
[334681826,1723468260621,-459.864876,0.00011105,2]
[334681827,1723468260631,-151.0,0.00011105,2]
[334681828,1723468260641,-282.757693,0.00011105,2]
[334681829,1723468260650,-1641.000757,0.00011105,2]
[334681830,1723468260665,-1641.000757,0.00011105,2]
[334681831,1723468260675,-282.757693,0.00011105,2]
[334681832,1723468260684,-613.901468,0.00011105,2]
[334681833,1723468260694,-614.178395,0.00011105,2]
[334681834,1723468260704,-613.901468,0.00011105,2]
[334681835,1723468260714,-420.8753,0.00011105,2]
[334681836,1723468260723,-614.178395,0.00011105,2]
[334681837,1723468260733,-420.8753,0.00011105,2]
[334681838,1723468260743,-151.0,0.00011105,2]
[334681839,1723468260753,-151.0,0.00011105,2]
[334681840,1723468260763,-151.0,0.00011105,2]
[334681841,1723468260772,-388.854769,0.00011105,2]
[334681842,1723468260782,-388.854769,0.00011105,2]
[334681843,1723468260792,-151.0,0.00011105,2]
[334681844,1723468260802,-189.109904,0.00011105,2]
[334681845,1723468260812,-189.109904,0.00011105,2]
[334681846,1723468260823,-1340.407514,0.00011105,2]
[334681847,1723468260833,-1340.407514,0.00011105,2]
[334681848,1723468260844,-151.0,0.00011105,2]
[334681849,1723468260854,-151.0,0.00011105,2]
[334681850,1723468260864,-931.857686,0.00011105,2]
[334681851,1723468260874,-931.857686,0.00011105,2]
[334681852,1723468260884,-373.783469,0.00011105,2]
[334681853,1723468260894,-373.783469,0.00011105,2]
[334681854,1723468260908,-2149.990857,0.00011105,2]
[334681855,1723468260918,-155.0,0.00011105,2]
[334681856,1723468260928,-2149.990857,0.00011105,2]
[334681857,1723468260937,-151.0,0.00011105,2]
[334681858,1723468260946,-396.988875,0.00011105,2]
[334681859,1723468260956,-396.988875,0.00011105,2]
[334681860,1723468260965,-653.067761,0.00011105,2]
[334681861,1723468260975,-151.0,0.00011105,2]
[334681862,1723468260985,-653.067761,0.00011105,2]
[334681863,1723468260994,-254.515709,0.00011105,2]
[334681864,1723468261004,-361.344867,0.00011105,2]
[334681865,1723468261013,-361.344867,0.00011105,2]
[334681866,1723468261023,-1580.699419,0.00011105,2]
[334681867,1723468261033,-254.515709,0.00011105,2]
[334681868,1723468261042,-361.344867,0.00011105,2]
[334681869,1723468261052,-361.344867,0.00011105,2]
[334681870,1723468261061,-151.0,0.00011105,2]
[334681871,1723468261071,-1580.699419,0.00011105,2]
[334681872,1723468261080,-151.0,0.00011105,2]
[334681873,1723468261090,-260.714024,0.00011105,2]
[334681874,1723468261100,-275.967869,0.00011105,2]
[334681875,1723468261109,-275.967869,0.00011105,2]
[334681876,1723468261118,-401.072804,0.00011105,2]
[334681877,1723468261127,-401.072804,0.00011105,2]
[334681878,1723468261136,-2044.828548,0.00011105,2]
[334681879,1723468261146,-2044.828548,0.00011105,2]
[334681880,1723468261159,-2044.828548,0.00011105,2]
[334681881,1723468261169,-2044.828548,0.00011105,2]
[334681882,1723468261178,-180.741562,0.00011105,2]
[334681883,1723468261188,-180.741562,0.00011105,2]
[334681884,1723468261197,-180.741562,0.00011105,2]
[334681885,1723468261206,-180.741562,0.00011105,2]
[334681886,1723468261216,-151.0,0.00011105,2]
[334681888,1723468261226,-151.0,0.00011105,2]
[334681889,1723468261235,-151.0,0.00011105,2]
[334681890,1723468261244,-151.0,0.00011105,2]
[334681891,1723468261253,-1461.265653,0.00011105,2]
[334681892,1723468261263,-1461.265653,0.00011105,2]
[334681893,1723468261272,-1461.265653,0.00011105,2]
[334681894,1723468261281,-151.0,0.00011105,2]
[334681895,1723468261291,-1461.265653,0.00011105,2]
[334681896,1723468261300,-151.0,0.00011105,2]
[334681897,1723468261310,-10000.0,0.00011105,2]
[334681898,1723468261319,-10000.0,0.00011105,2]
[334681899,1723468261329,-10000.0,0.00011105,2]
[334681900,1723468261338,-10000.0,0.00011105,2]
[334681901,1723468261347,-3992.930337,0.00011105,2]
[334681902,1723468261357,-3992.930337,0.00011105,2]
[334681903,1723468261366,-10000.0,0.00011105,2]
[334681904,1723468261375,-10000.0,0.00011105,2]
[334681905,1723468261384,-151.0,0.00011105,2]
[334681906,1723468261393,-151.0,0.00011105,2]
[334681907,1723468261402,-3992.930337,0.00011105,2]
[334681908,1723468261415,-3992.930337,0.00011105,2]
[334681909,1723468261424,-10000.0,0.00011105,2]
[334681910,1723468261437,-9178.728943,0.00011105,2]
[334681911,1723468261447,-151.0,0.00011105,2]
[334681912,1723468261456,-256.132215,0.00011105,2]
[334681913,1723468261470,-522.85661593,0.00011105,2]
[334681914,1723468261579,-154.755526,0.00011105,2]
[334681915,1723468261589,-154.755526,0.00011105,2]
[334681916,1723468261598,-154.755526,0.00011105,2]
[334681917,1723468261608,-235.638382,0.00011105,2]
[334681918,1723468261617,-154.755526,0.00011105,2]
[334681919,1723468261626,-235.638382,0.00011105,2]
[334681920,1723468261635,-151.0,0.00011105,2]
[334681921,1723468261645,-973.189028,0.00011105,2]
[334681922,1723468261657,-973.189028,0.00011105,2]
[334681923,1723468261667,-305.524046,0.00011105,2]
[334681924,1723468261676,-973.189028,0.00011105,2]
[334681925,1723468261685,-973.189028,0.00011105,2]
[334681926,1723468261694,-305.524046,0.00011105,2]
[334681927,1723468261703,-348.495032,0.00011105,2]
[334681928,1723468261712,-348.495032,0.00011105,2]
[334681929,1723468261722,-177.428509,0.00011105,2]
[334681930,1723468261731,-177.428509,0.00011105,2]
[334681931,1723468261740,-340.537801,0.00011105,2]
[334681932,1723468261749,-177.428509,0.00011105,2]
[334681933,1723468261758,-177.428509,0.00011105,2]
[334681934,1723468261768,-340.537801,0.00011105,2]
[334681935,1723468261777,-186.157054,0.00011105,2]
[334681936,1723468261786,-170.370745,0.00011105,2]
[334681937,1723468261795,-170.370745,0.00011105,2]
[334681938,1723468261804,-3713.6898,0.00011105,2]
[334681939,1723468261814,-3713.6898,0.00011105,2]
[334681940,1723468261823,-186.157054,0.00011105,2]
[334681941,1723468261832,-170.370745,0.00011105,2]
[334681942,1723468261841,-170.370745,0.00011105,2]
[334681943,1723468261850,-3713.6898,0.00011105,2]
[334681944,1723468261860,-3713.6898,0.00011105,2]
[334681945,1723468261869,-151.0,0.00011105,2]
[334681946,1723468261879,-151.0,0.00011105,2]
[334681947,1723468261888,-154.050545,0.00011105,2]
[334681948,1723468261898,-151.0,0.00011105,2]
[334681949,1723468261910,-151.0,0.00011105,2]
[334681950,1723468261919,-346.716169,0.00011105,2]
[334681951,1723468261929,-346.716169,0.00011105,2]
[334681952,1723468261938,-346.716169,0.00011105,2]
[334681953,1723468261947,-346.716169,0.00011105,2]
[334681954,1723468261956,-3483.689978,0.00011105,2]
[334681955,1723468261965,-3483.689978,0.00011105,2]
[334681956,1723468261974,-3483.689978,0.00011105,2]
[334681957,1723468261983,-3483.689978,0.00011105,2]
[334681958,1723468261992,-457.256867,0.00011105,2]
[334681959,1723468262002,-457.256867,0.00011105,2]
[334681960,1723468262011,-2789.681051,0.00011105,2]
[334681961,1723468262020,-2789.681051,0.00011105,2]
[334681962,1723468262030,-2789.681051,0.00011105,2]
[334681963,1723468262039,-2789.681051,0.00011105,2]
[334681964,1723468262049,-2000.0,0.0001111,2]
[334681965,1723468262058,-200.0,0.0001111,2]
[334681966,1723468262067,-200.0,0.0001111,2]
[334681967,1723468262076,-1982.28196134,0.0001111,2]
[334681968,1723468262085,-200.0,0.0001111,2]
[334681969,1723468262095,-207.89,0.00011122,2]
[334681970,1723468262104,-45685.51723527,0.00011185,2]
[334681971,1723468262113,-227.227554,0.00011185,2]
[334681972,1723468262122,-151.0,0.00011185,2]
[334681973,1723468262131,-227.227554,0.00011185,2]
[334681974,1723468262140,-803.388965,0.00011185,2]
[334681975,1723468262150,-392.846601,0.00011185,2]
[334681976,1723468262162,-392.846601,0.00011185,2]
[334681977,1723468262172,-235.892359,0.00011185,2]
[334681978,1723468262181,-235.892359,0.00011185,2]
[334681979,1723468262191,-1244.122948,0.00011185,2]
[334681980,1723468262200,-1244.122948,0.00011185,2]
[334681981,1723468262209,-185.118147,0.00011185,2]
[334681982,1723468262218,-185.118147,0.00011185,2]
[334681983,1723468262227,-151.0,0.00011185,2]
[334681984,1723468262237,-1023.183856,0.00011185,2]
[334681985,1723468262247,-1023.183856,0.00011185,2]
[334681986,1723468262256,-151.0,0.00011185,2]
[334681987,1723468262265,-152.595704,0.00011185,2]
[334681988,1723468262274,-152.595704,0.00011185,2]
[334681989,1723468262283,-1765.15615,0.00011185,2]
[334681990,1723468262292,-1765.15615,0.00011185,2]
[334681991,1723468262301,-206.744811,0.00011185,2]
[334681992,1723468262311,-405.5944,0.00011185,2]
[334681993,1723468262320,-405.5944,0.00011185,2]
[334681994,1723468262329,-773.28605,0.00011185,2]
[334681995,1723468262339,-773.28605,0.00011185,2]
[334681996,1723468262349,-459.864876,0.00011185,2]
[334681997,1723468262358,-459.864876,0.00011185,2]
[334681998,1723468262367,-151.0,0.00011185,2]
[334681999,1723468262377,-1641.000757,0.00011185,2]
[334682000,1723468262387,-1641.000757,0.00011185,2]
[334682001,1723468262396,-613.901468,0.00011185,2]
[334682002,1723468262408,-613.901468,0.00011185,2]
[334682003,1723468262418,-151.0,0.00011185,2]
[334682004,1723468262428,-248.963791,0.00011185,2]
[334682005,1723468262438,-151.0,0.00011185,2]
[334682006,1723468262452,-189.109904,0.00011185,2]
[334682007,1723468262462,-189.109904,0.00011185,2]
[334682008,1723468262472,-1340.407514,0.00011185,2]
[334682009,1723468262481,-1340.407514,0.00011185,2]
[334682010,1723468262493,-151.0,0.00011185,2]
[334682011,1723468262502,-151.0,0.00011185,2]
[334682012,1723468262512,-931.857686,0.00011185,2]
[334682013,1723468262523,-931.857686,0.00011185,2]
[334682014,1723468262533,-373.783469,0.00011185,2]
[334682015,1723468262542,-373.783469,0.00011185,2]
[334682016,1723468262552,-2149.990857,0.00011185,2]
[334682017,1723468262562,-151.0,0.00011185,2]
[334682018,1723468262572,-2149.990857,0.00011185,2]
[334682019,1723468262581,-396.988875,0.00011185,2]
[334682020,1723468262591,-396.988875,0.00011185,2]
[334682021,1723468262600,-653.067761,0.00011185,2]
[334682022,1723468262610,-151.0,0.00011185,2]
[334682023,1723468262620,-653.067761,0.00011185,2]
[334682024,1723468262631,-254.515709,0.00011185,2]
[334682025,1723468262640,-1580.699419,0.00011185,2]
[334682026,1723468262651,-254.515709,0.00011185,2]
[334682027,1723468262667,-151.0,0.00011185,2]
[334682028,1723468262677,-1580.699419,0.00011185,2]
[334682029,1723468262687,-275.967869,0.00011185,2]
[334682030,1723468262696,-275.967869,0.00011185,2]
[334682031,1723468262707,-401.072804,0.00011185,2]
[334682032,1723468262717,-401.072804,0.00011185,2]
[334682033,1723468262726,-151.0,0.00011185,2]
[334682034,1723468262736,-235.638382,0.00011185,2]
[334682035,1723468262746,-235.638382,0.00011185,2]
[334682036,1723468262755,-151.0,0.00011185,2]
[334682037,1723468262764,-973.189028,0.00011185,2]
[334682038,1723468262774,-305.524046,0.00011185,2]
[334682039,1723468262783,-973.189028,0.00011185,2]
[334682040,1723468262793,-305.524046,0.00011185,2]
[334682041,1723468262803,-348.495032,0.00011185,2]
[334682042,1723468262812,-348.495032,0.00011185,2]
[334682043,1723468262822,-340.537801,0.00011185,2]
[334682044,1723468262832,-340.537801,0.00011185,2]
[334682045,1723468262841,-186.157054,0.00011185,2]
[334682046,1723468262851,-186.157054,0.00011185,2]
[334682047,1723468262860,-457.256867,0.00011185,2]
[334682048,1723468262869,-457.256867,0.00011185,2]
[334682049,1723468262879,-35727.72779464,0.00011186,2]
[334682050,1723468262888,-29525.2826092,0.00011186,2]
[334682051,1723468262899,-263.749337,0.00011186,2]
[334682052,1723468262915,-263.749337,0.00011186,2]
[334682053,1723468262924,-321.919532,0.00011186,2]
[334682054,1723468262934,-321.919532,0.00011186,2]
[334682055,1723468262944,-209.116136,0.00011186,2]
[334682056,1723468262953,-209.116136,0.00011186,2]
[334682057,1723468262963,-751.248501,0.00011186,2]
[334682058,1723468262973,-751.248501,0.00011186,2]
[334682059,1723468262982,-684.571937,0.00011186,2]
[334682060,1723468262992,-684.571937,0.00011186,2]
[334682061,1723468263104,-282.757693,0.00011186,2]
[334682062,1723468263114,-282.757693,0.00011186,2]
[334682063,1723468263124,-361.344867,0.00011186,2]
[334682064,1723468263134,-361.344873,0.00011186,2]
[334682065,1723468263144,-2044.828548,0.00011186,2]
[334682066,1723468263154,-2044.828557,0.00011186,2]
[334682067,1723468263169,-180.741562,0.00011186,2]
[334682068,1723468263178,-180.741556,0.00011186,2]
[334682069,1723468263189,-151.0,0.00011186,2]
[334682070,1723468263200,-151.0,0.00011186,2]
[334682071,1723468263210,-1461.265653,0.00011186,2]
[334682072,1723468263220,-1461.265656,0.00011186,2]
[334682073,1723468263230,-10000.0,0.00011186,2]
[334682074,1723468263240,-10000.0,0.00011186,2]
[334682075,1723468263250,-3992.930337,0.00011186,2]
[334682076,1723468263260,-10000.0,0.00011186,2]
[334682077,1723468263270,-151.0,0.00011186,2]
[334682078,1723468263280,-3992.930331,0.00011186,2]
[334682079,1723468263289,-154.755526,0.00011186,2]
[334682080,1723468263299,-154.75553,0.00011186,2]
[334682081,1723468263309,-177.428509,0.00011186,2]
[334682082,1723468263319,-177.428517,0.00011186,2]
[334682083,1723468263329,-170.370745,0.00011186,2]
[334682084,1723468263339,-3713.6898,0.00011186,2]
[334682085,1723468263348,-170.370739,0.00011186,2]
[334682086,1723468263358,-3713.689799,0.00011186,2]
[334682087,1723468263367,-151.0,0.00011186,2]
[334682088,1723468263377,-151.0,0.00011186,2]
[334682089,1723468263387,-346.716169,0.00011186,2]
[334682090,1723468263397,-346.716161,0.00011186,2]
[334682091,1723468263409,-3483.689978,0.00011186,2]
[334682092,1723468263418,-3483.689968,0.00011186,2]
[334682093,1723468263428,-2789.681051,0.00011186,2]
[334682094,1723468263439,-2789.681055,0.00011186,2]
[334682095,1723468263452,-150.0,0.000112,2]
[334682096,1723468263462,-2000.0,0.00011221,2]
[334682097,1723468263472,-200.0,0.00011221,2]
[334682098,1723468263482,-200.0,0.00011221,2]
[334682099,1723468263494,-200.0,0.00011221,2]
[334682100,1723468263504,-507.84,0.00011242,2]
[334682101,1723468263514,-16904.9565691,0.0001129,2]
[334682102,1723468263523,-200.0,0.00011333,2]
[334682103,1723468263538,-200.0,0.00011333,2]
[334682104,1723468263548,-200.0,0.00011333,2]
[334682105,1723468263558,-405.16845843,0.00011334,2]
[334682106,1723468263567,-492.16,0.00011388,2]
[334682107,1723468263577,-954.7,0.000114,2]
[334682108,1723468263586,-358.0,0.000114,2]
[334682109,1723468263596,-1000.0,0.000114,2]
[334682110,1723468263606,-226.0,0.000114,2]
[334682111,1723468263615,-200.0,0.00011447,2]
[334682112,1723468263625,-200.0,0.00011447,2]
[334682113,1723468263635,-200.0,0.00011447,2]
[334682114,1723468263644,-500.0,0.0001158,2]
[334682115,1723468263657,-500.0,0.00011589,2]
[334682116,1723468263666,-500.0,0.00011597,2]
[334682117,1723468263675,-500.0,0.00011606,2]
[334682118,1723468263684,-500.0,0.00011615,2]
[334682119,1723468263694,-500.0,0.00011624,2]
[334682120,1723468263703,-500.0,0.00011633,2]
[334682121,1723468263712,-500.0,0.00011641,2]
[334682122,1723468263722,-500.0,0.0001165,2]
[334682123,1723468263731,-500.0,0.00011659,2]
[334682124,1723468263741,-500.0,0.00011668,2]
[334682125,1723468263751,-500.0,0.00011677,2]
[334682126,1723468263760,-500.0,0.00011685,2]
[334682127,1723468263770,-457.256867,0.00011694,2]
[334682128,1723468263779,-457.256861,0.00011694,2]
[334682129,1723468263788,-500.0,0.00011694,2]
[334682130,1723468263797,-2000.0,0.000117,2]
[334682131,1723468263807,-500.0,0.00011703,2]
[334682132,1723468263816,-500.0,0.00011712,2]
[334682133,1723468263826,-500.0,0.00011721,2]
[334682134,1723468263836,-500.0,0.00011729,2]
[334682135,1723468263845,-500.0,0.00011738,2]
[334682136,1723468263854,-500.0,0.00011747,2]
[334682137,1723468263864,-500.0,0.00011756,2]
[334682138,1723468263873,-500.0,0.00011765,2]
[334682139,1723468263883,-500.0,0.00011773,2]
[334682140,1723468263892,-500.0,0.00011782,2]
[334682141,1723468263902,-500.0,0.00011791,2]
[334682142,1723468263914,-500.0,0.000118,2]
[334682143,1723468263923,-500.0,0.00011809,2]
[334682144,1723468263932,-500.0,0.00011817,2]
[334682145,1723468263942,-500.0,0.00011826,2]
[334682146,1723468263951,-500.0,0.00011835,2]
[334682147,1723468263960,-500.0,0.00011844,2]
[334682148,1723468263970,-263.749337,0.0001185,2]
[334682149,1723468263980,-263.749329,0.0001185,2]
[334682150,1723468263989,-321.919532,0.0001185,2]
[334682151,1723468263998,-321.91953,0.0001185,2]
[334682152,1723468264007,-209.116136,0.0001185,2]
[334682153,1723468264016,-209.116136,0.0001185,2]
[334682154,1723468264026,-751.248501,0.0001185,2]
[334682155,1723468264036,-751.248496,0.0001185,2]
[334682156,1723468264045,-684.571937,0.0001185,2]
[334682157,1723468264055,-684.571944,0.0001185,2]
[334682158,1723468264064,-459.864876,0.0001185,2]
[334682159,1723468264074,-459.864868,0.0001185,2]
[334682160,1723468264083,-1641.000757,0.0001185,2]
[334682161,1723468264092,-1641.000751,0.0001185,2]
[334682162,1723468264101,-613.901468,0.0001185,2]
[334682163,1723468264111,-614.178395,0.0001185,2]
[334682164,1723468264120,-613.901476,0.0001185,2]
[334682165,1723468264129,-420.8753,0.0001185,2]
[334682166,1723468264138,-614.178395,0.0001185,2]
[334682167,1723468264147,-420.8753,0.0001185,2]
[334682168,1723468264160,-151.0,0.0001185,2]
[334682169,1723468264169,-388.854769,0.0001185,2]
[334682170,1723468264180,-388.854769,0.0001185,2]
[334682171,1723468264189,-151.0,0.0001185,2]
[334682172,1723468264198,-189.109904,0.0001185,2]
[334682173,1723468264207,-189.109902,0.0001185,2]
[334682174,1723468264216,-1340.407514,0.0001185,2]
[334682175,1723468264226,-1340.407514,0.0001185,2]
[334682176,1723468264235,-151.0,0.0001185,2]
[334682177,1723468264244,-151.0,0.0001185,2]
[334682178,1723468264254,-931.857686,0.0001185,2]
[334682179,1723468264263,-931.857686,0.0001185,2]
[334682180,1723468264272,-373.783469,0.0001185,2]
[334682181,1723468264281,-373.783478,0.0001185,2]
[334682182,1723468264292,-2149.990857,0.0001185,2]
[334682183,1723468264301,-151.0,0.0001185,2]
[334682184,1723468264310,-2149.990864,0.0001185,2]
[334682185,1723468264320,-396.988875,0.0001185,2]
[334682186,1723468264329,-396.988866,0.0001185,2]
[334682187,1723468264339,-653.067761,0.0001185,2]
[334682188,1723468264348,-151.0,0.0001185,2]
[334682189,1723468264358,-653.06777,0.0001185,2]
[334682190,1723468264367,-254.515709,0.0001185,2]
[334682191,1723468264377,-1580.699419,0.0001185,2]
[334682192,1723468264386,-254.515709,0.0001185,2]
[334682193,1723468264395,-151.0,0.0001185,2]
[334682194,1723468264409,-1580.699413,0.0001185,2]
[334682195,1723468264418,-275.967869,0.0001185,2]
[334682196,1723468264428,-275.967878,0.0001185,2]
[334682197,1723468264441,-401.072804,0.0001185,2]
[334682198,1723468264451,-401.072796,0.0001185,2]
[334682199,1723468264460,-235.638382,0.0001185,2]
[334682200,1723468264469,-235.638382,0.0001185,2]
[334682201,1723468264481,-179.550467,0.0001185,2]
[334682202,1723468264491,-305.524046,0.0001185,2]
[334682203,1723468264500,-305.524046,0.0001185,2]
[334682204,1723468264511,-348.495032,0.0001185,2]
[334682205,1723468264520,-348.495032,0.0001185,2]
[334682206,1723468264530,-340.537801,0.0001185,2]
[334682207,1723468264540,-340.537801,0.0001185,2]
[334682208,1723468264549,-186.157054,0.0001185,2]
[334682209,1723468264559,-186.157054,0.0001185,2]
[334682210,1723468264568,-500.0,0.00011853,2]
[334682212,1723468264578,-500.0,0.00011861,2]
[334682213,1723468264587,-402.41,0.00011863,2]
[334682214,1723468264597,-500.0,0.0001187,2]
[334682215,1723468264606,-200.0,0.00011873,2]
[334682216,1723468264615,-200.0,0.00011873,2]
[334682217,1723468264624,-500.0,0.00011879,2]
[334682218,1723468264633,-500.0,0.00011888,2]
[334682219,1723468264643,-302584.15899429,0.00011896,2]
[334682220,1723468264652,-235.638382,0.00011896,2]
[334682221,1723468264664,-235.63837589,0.00011896,2]
[334682222,1723468264673,-305.524046,0.00011896,2]
[334682223,1723468264683,-305.524046,0.00011896,2]
[334682224,1723468264692,-348.495032,0.00011896,2]
[334682225,1723468264701,-348.495036,0.00011896,2]
[334682226,1723468264710,-340.537801,0.00011896,2]
[334682227,1723468264720,-340.537804,0.00011896,2]
[334682228,1723468264729,-186.157054,0.00011896,2]
[334682229,1723468264739,-186.157045,0.00011896,2]
[334682230,1723468264748,-500.0,0.00011897,2]
[334682231,1723468264758,-500.0,0.00011905,2]
[334682232,1723468264768,-500.0,0.00011914,2]
[334682233,1723468264777,-789.22602795,0.00011923,2]
[334682234,1723468264787,-500.0,0.00011923,2]
[334682235,1723468264797,-500.0,0.00011932,2]
[334682236,1723468264806,-500.0,0.00011941,2]
[334682237,1723468264817,-500.0,0.00011949,2]
[334682238,1723468264826,-496.81326183,0.00011957,2]
[334682239,1723468264836,-500.0,0.00011958,2]
[334682240,1723468264845,-500.0,0.00011967,2]
[334682241,1723468264855,-500.0,0.00011976,2]
[334682242,1723468264864,-500.0,0.00011985,2]
[334682243,1723468264873,-500.0,0.00011993,2]
[334682244,1723468264883,-155.21731765,0.00012,2]
[334682245,1723468264892,-3300.0,0.00012,2]
[334682246,1723468264902,-1512.20658095,0.00012,2]
[334682247,1723468264914,-5213.15662591,0.00012,2]
[334682248,1723468264923,-14099.28359379,0.00012,2]
[334682249,1723468264933,-257.113054,0.00012,2]
[334682250,1723468264942,-257.113054,0.00012,2]
[334682251,1723468264952,-151.0,0.00012,2]
[334682252,1723468264962,-1765.15615,0.00012,2]
[334682253,1723468264971,-1765.15615,0.00012,2]
[334682254,1723468264980,-405.5944,0.00012,2]
[334682255,1723468264989,-405.594406,0.00012,2]
[334682256,1723468264999,-773.28605,0.00012,2]
[334682257,1723468265009,-773.286057,0.00012,2]
[334682258,1723468265019,-151.0,0.00012,2]
[334682259,1723468265029,-282.757693,0.00012,2]
[334682260,1723468265039,-282.757685,0.00012,2]
[334682261,1723468265048,-614.178395,0.00012,2]
[334682262,1723468265058,-420.8753,0.00012,2]
[334682263,1723468265069,-614.178393,0.00012,2]
[334682264,1723468265078,-420.8753,0.00012,2]
[334682265,1723468265088,-151.0,0.00012,2]
[334682266,1723468265097,-151.0,0.00012,2]
[334682267,1723468265213,-388.854769,0.00012,2]
[334682268,1723468265223,-388.854778,0.00012,2]
[334682269,1723468265232,-179.968216,0.00012,2]
[334682270,1723468265241,-1340.407514,0.00012,2]